[Event "*** Titled Tuesday Blitz"]
[Site "Chess.com"]
[Date "2018.06.05"]
[Round "5"]
[White "Beca95"]
[Black "Ehsan_GhaemMaghami"]
[Result "1-0"]
[WhiteElo "2783"]
[BlackElo "2568"]
[TimeControl "180+2"]
[EndTime "14:15:35 PDT"]
[Termination "Beca95 won on time"]

1. d4 {[%clk 0:03:01.9]} 1... Nf6 {[%clk 0:02:59.6]} 2. c4 {[%clk 0:03:02.6]}
2... e6 {[%clk 0:03:01]} 3. Nc3 {[%clk 0:03:03.2]} 3... Bb4 {[%clk 0:03:02.5]}
4. Qc2 {[%clk 0:03:04.9]} 4... d6 {[%clk 0:03:01.1]} 5. Bg5 {[%clk 0:03:03.6]}
5... h6 {[%clk 0:02:56.8]} 6. Bh4 {[%clk 0:03:03.4]} 6... Nbd7 {[%clk
0:02:51.3]} 7. e3 {[%clk 0:03:04.4]} 7... b6 {[%clk 0:02:51.1]} 8. Ne2 {[%clk
0:03:00]} 8... Bb7 {[%clk 0:02:49.6]} 9. a3 {[%clk 0:03:01.1]} 9... Bxc3+ {[%clk
0:02:49.6]} 10. Nxc3 {[%clk 0:03:03]} 10... Nf8 {[%clk 0:02:25.8]} 11. f3 {[%clk
0:03:03.7]} 11... Ng6 {[%clk 0:02:26.2]} 12. Bf2 {[%clk 0:03:04.3]} 12... c5
{[%clk 0:02:21.3]} 13. dxc5 {[%clk 0:03:00.6]} 13... bxc5 {[%clk 0:02:19]} 14.
O-O-O {[%clk 0:03:01]} 14... O-O {[%clk 0:02:16.9]} 15. Be2 {[%clk 0:02:44.9]}
15... d5 {[%clk 0:02:10.1]} 16. g4 {[%clk 0:02:40.9]} 16... Qa5 {[%clk
0:01:49.7]} 17. h4 {[%clk 0:02:41.6]} 17... dxc4 {[%clk 0:01:37.8]} 18. g5
{[%clk 0:01:51.2]} 18... hxg5 {[%clk 0:01:32.7]} 19. hxg5 {[%clk 0:01:53.1]}
19... Nd5 {[%clk 0:01:32.8]} 20. Nxd5 {[%clk 0:01:25.9]} 20... exd5 {[%clk
0:01:33.3]} 21. f4 {[%clk 0:01:27.1]} 21... c3 {[%clk 0:01:21.7]} 22. f5 {[%clk
0:01:25.5]} 22... cxb2+ {[%clk 0:00:43.1]} 23. Qxb2 {[%clk 0:01:24.7]} 23... d4
{[%clk 0:00:32.3]} 24. fxg6 {[%clk 0:01:16.2]} 24... Bxh1 {[%clk 0:00:30.7]} 25.
Rxh1 {[%clk 0:01:11.9]} 25... Rab8 {[%clk 0:00:19]} 26. gxf7+ {[%clk 0:00:50.3]}
26... Kxf7 {[%clk 0:00:20]} 27. Qa2+ {[%clk 0:00:51.5]} 27... Ke7 {[%clk
0:00:20.2]} 28. Be1 {[%clk 0:00:51.5]} 28... Qa4 {[%clk 0:00:15.9]} 29. Rh4
{[%clk 0:00:48.6]} 29... Rb3 {[%clk 0:00:14.7]} 30. Re4+ {[%clk 0:00:49]} 30...
Kd8 {[%clk 0:00:13.6]} 31. exd4 {[%clk 0:00:41.5]} 31... Rxa3 {[%clk 0:00:13.9]}
32. Qd5+ {[%clk 0:00:42.2]} 32... Qd7 {[%clk 0:00:13.9]} 33. Qxd7+ {[%clk
0:00:36.7]} 33... Kxd7 {[%clk 0:00:14.1]} 34. dxc5 {[%clk 0:00:33]} 34... Rf5
{[%clk 0:00:14.4]} 35. Bb4 {[%clk 0:00:33]} 35... Rg3 {[%clk 0:00:13]} 36. Bg4
{[%clk 0:00:33]} 36... Rxg4 {[%clk 0:00:13]} 37. Rxg4 {[%clk 0:00:34.2]} 37...
g6 {[%clk 0:00:13.5]} 38. Kc2 {[%clk 0:00:35]} 38... Kc6 {[%clk 0:00:14.3]} 39.
Kb3 {[%clk 0:00:36.2]} 39... Kb5 {[%clk 0:00:14.4]} 40. Rg3 {[%clk 0:00:32.9]}
40... a5 {[%clk 0:00:14.9]} 41. Ba3 {[%clk 0:00:34.2]} 41... Rd5 {[%clk
0:00:15.1]} 42. Kc3 {[%clk 0:00:35.2]} 42... a4 {[%clk 0:00:11.2]} 43. Kc2
{[%clk 0:00:32.6]} 43... Rf5 {[%clk 0:00:10.5]} 44. Rg2 {[%clk 0:00:33.8]} 44...
Rf3 {[%clk 0:00:10.7]} 45. Bb2 {[%clk 0:00:31]} 45... Kxc5 {[%clk 0:00:10.3]}
46. Rh2 {[%clk 0:00:30.2]} 46... Rg3 {[%clk 0:00:04.1]} 47. Bf6 {[%clk
0:00:23.8]} 47... a3 {[%clk 0:00:05]} 48. Rh6 {[%clk 0:00:23.3]} 48... Kc4
{[%clk 0:00:05.7]} 49. Rxg6 {[%clk 0:00:21.5]} 49... Rg2+ {[%clk 0:00:06.3]} 50.
Kc1 {[%clk 0:00:21.4]} 50... Kb3 {[%clk 0:00:04]} 51. Rg8 {[%clk 0:00:20.9]}
51... Rg1+ {[%clk 0:00:04.1]} 52. Kd2 {[%clk 0:00:21.4]} 52... a2 {[%clk
0:00:05.4]} 53. Ra8 {[%clk 0:00:20.5]} 53... Rg3 {[%clk 0:00:05]} 54. Ke2 {[%clk
0:00:20]} 54... Rg1 {[%clk 0:00:04.9]} 55. Kf2 {[%clk 0:00:21.2]} 55... Rg4
{[%clk 0:00:05.4]} 56. Kf3 {[%clk 0:00:22.5]} 56... Rg1 {[%clk 0:00:06.1]} 57.
Kf4 {[%clk 0:00:23.8]} 57... Rf1+ {[%clk 0:00:06.2]} 58. Kg4 {[%clk 0:00:24.8]}
58... Rg1+ {[%clk 0:00:06.8]} 59. Kh5 {[%clk 0:00:26]} 59... Rf1 {[%clk
0:00:05.4]} 60. Kg6 {[%clk 0:00:27.2]} 60... Rg1 {[%clk 0:00:05.4]} 61. Kf7
{[%clk 0:00:28.4]} 1-0

[Event "*** Titled Tuesday Blitz"]
[Site "Chess.com"]
[Date "2018.06.05"]
[Round "5"]
[White "IMAghasiyevKamal"]
[Black "WPWPWP-2015"]
[Result "1-0"]
[WhiteElo "2478"]
[BlackElo "2322"]
[TimeControl "180+2"]
[EndTime "14:15:44 PDT"]
[Termination "IMAghasiyevKamal won by resignation"]

1. d4 {[%clk 0:03:00.2]} 1... Nf6 {[%clk 0:02:59.1]} 2. c4 {[%clk 0:02:58.4]}
2... c6 {[%clk 0:02:59.6]} 3. Nc3 {[%clk 0:02:58.4]} 3... d5 {[%clk 0:03:00]} 4.
e3 {[%clk 0:02:59.5]} 4... e6 {[%clk 0:03:00.1]} 5. Nf3 {[%clk 0:02:58.4]} 5...
Nbd7 {[%clk 0:03:00.3]} 6. Qc2 {[%clk 0:02:54.2]} 6... Bd6 {[%clk 0:03:00.1]} 7.
Bd3 {[%clk 0:02:51.4]} 7... dxc4 {[%clk 0:03:00.4]} 8. Bxc4 {[%clk 0:02:52.6]}
8... b5 {[%clk 0:03:00.8]} 9. Be2 {[%clk 0:02:49.3]} 9... O-O {[%clk 0:03:00.9]}
10. O-O {[%clk 0:02:48.4]} 10... Bb7 {[%clk 0:03:01]} 11. Ng5 {[%clk 0:02:44]}
11... Rc8 {[%clk 0:02:32.7]} 12. Nce4 {[%clk 0:02:32]} 12... Be7 {[%clk
0:02:17.6]} 13. Nxf6+ {[%clk 0:02:08.3]} 13... Nxf6 {[%clk 0:02:17.1]} 14. Bf3
{[%clk 0:02:04.5]} 14... h6 {[%clk 0:02:05.9]} 15. Ne4 {[%clk 0:02:02.9]} 15...
Nxe4 {[%clk 0:01:56.8]} 16. Bxe4 {[%clk 0:01:57]} 16... Qb6 {[%clk 0:01:56.9]}
17. Bd2 {[%clk 0:01:48.3]} 17... c5 {[%clk 0:01:53.4]} 18. Bxb7 {[%clk
0:01:49.2]} 18... Qxb7 {[%clk 0:01:53.1]} 19. dxc5 {[%clk 0:01:48.6]} 19... Rxc5
{[%clk 0:01:50.8]} 20. Qb3 {[%clk 0:01:45.4]} 20... Qd5 {[%clk 0:01:43.5]} 21.
Bb4 {[%clk 0:01:34.3]} 21... Qxb3 {[%clk 0:01:27.6]} 22. axb3 {[%clk 0:01:34.3]}
22... Rc7 {[%clk 0:01:28.1]} 23. Bxe7 {[%clk 0:01:35]} 23... Rxe7 {[%clk
0:01:28.9]} 24. Ra5 {[%clk 0:01:35.7]} 24... Rb8 {[%clk 0:01:27.7]} 25. Rc1
{[%clk 0:01:29.9]} 25... Rd7 {[%clk 0:01:21.5]} 26. g3 {[%clk 0:01:29]} 26...
Kf8 {[%clk 0:01:16.4]} 27. Rc5 {[%clk 0:01:28.7]} 27... Rdb7 {[%clk 0:01:13.3]}
28. h4 {[%clk 0:01:23.8]} 28... Ke7 {[%clk 0:01:11.3]} 29. b4 {[%clk 0:01:23]}
29... Kd7 {[%clk 0:00:53.6]} 30. h5 {[%clk 0:01:21.3]} 30... Kd6 {[%clk
0:00:48.8]} 31. Kg2 {[%clk 0:01:15.3]} 31... Kd7 {[%clk 0:00:30.3]} 32. g4
{[%clk 0:01:14.8]} 32... Ke7 {[%clk 0:00:26.1]} 33. Kg3 {[%clk 0:01:09.9]} 33...
Kd6 {[%clk 0:00:26]} 34. f4 {[%clk 0:01:09.7]} 34... Ke7 {[%clk 0:00:25.4]} 35.
Kf3 {[%clk 0:01:04.3]} 35... Kd6 {[%clk 0:00:25.9]} 36. g5 {[%clk 0:00:58.2]}
36... Ke7 {[%clk 0:00:25.3]} 37. Kg4 {[%clk 0:00:49.3]} 37... Kd6 {[%clk
0:00:24]} 38. e4 {[%clk 0:00:46]} 38... Ke7 {[%clk 0:00:24.3]} 39. e5 {[%clk
0:00:42.7]} 39... hxg5 {[%clk 0:00:22.9]} 40. Kxg5 {[%clk 0:00:38.8]} 40... f6+
{[%clk 0:00:18.4]} 41. Kg6 {[%clk 0:00:37.2]} 41... fxe5 {[%clk 0:00:13]} 42.
fxe5 {[%clk 0:00:37.2]} 42... Kd7 {[%clk 0:00:11.2]} 43. Ra6 {[%clk 0:00:32.3]}
43... Ke7 {[%clk 0:00:10.7]} 44. Rcc6 {[%clk 0:00:32.2]} 44... Rh8 {[%clk
0:00:03.8]} 45. Rxe6+ {[%clk 0:00:31.4]} 45... Kd7 {[%clk 0:00:05]} 46. Rad6+
{[%clk 0:00:30.2]} 46... Kc8 {[%clk 0:00:05.5]} 47. Kg5 {[%clk 0:00:19.7]} 47...
Kb8 {[%clk 0:00:05.1]} 48. Rg6 {[%clk 0:00:19.8]} 48... Re7 {[%clk 0:00:05.5]}
49. e6 {[%clk 0:00:20.7]} 49... Kc7 {[%clk 0:00:06.3]} 50. Rd7+ {[%clk
0:00:21.7]} 50... Rxd7 {[%clk 0:00:06.8]} 51. exd7 {[%clk 0:00:23]} 51... Kxd7
{[%clk 0:00:08.1]} 52. Rxg7+ {[%clk 0:00:24.3]} 52... Ke6 {[%clk 0:00:09.4]} 53.
Kg6 {[%clk 0:00:25]} 53... Rf8 {[%clk 0:00:09.6]} 54. Rxa7 {[%clk 0:00:23.3]}
54... Rf6+ {[%clk 0:00:09.1]} 55. Kg7 {[%clk 0:00:24.1]} 55... Rf1 {[%clk
0:00:08.4]} 56. Ra6+ {[%clk 0:00:25]} 56... Ke7 {[%clk 0:00:09.1]} 57. h6 {[%clk
0:00:26.2]} 57... Rf7+ {[%clk 0:00:09.4]} 58. Kg6 {[%clk 0:00:25.6]} 58... Rf2
{[%clk 0:00:09.6]} 59. h7 {[%clk 0:00:17.6]} 59... Rg2+ {[%clk 0:00:09.8]} 60.
Kh6 {[%clk 0:00:18.5]} 60... Kf7 {[%clk 0:00:09.1]} 61. Ra7+ {[%clk 0:00:16.9]}
61... Ke6 {[%clk 0:00:09.6]} 62. h8=Q {[%clk 0:00:17.6]} 62... Rh2+ {[%clk
0:00:10.8]} 63. Kg7 {[%clk 0:00:18.7]} 63... Rg2+ {[%clk 0:00:11.8]} 64. Kf8
{[%clk 0:00:19.4]} 64... Rf2+ {[%clk 0:00:12.3]} 65. Ke8 {[%clk 0:00:20.3]} 1-0

[Event "*** Titled Tuesday Blitz"]
[Site "Chess.com"]
[Date "2018.06.05"]
[Round "5"]
[White "nurmiTV"]
[Black "Keaton87"]
[Result "1/2-1/2"]
[WhiteElo "2497"]
[BlackElo "2455"]
[TimeControl "180+2"]
[EndTime "14:15:49 PDT"]
[Termination "Game drawn by repetition"]

1. c4 {[%clk 0:03:01.9]} 1... Nf6 {[%clk 0:03:00.1]} 2. Nc3 {[%clk 0:03:03.1]}
2... g6 {[%clk 0:03:01.1]} 3. g3 {[%clk 0:03:04.1]} 3... d5 {[%clk 0:03:01.7]}
4. cxd5 {[%clk 0:03:04.8]} 4... Nxd5 {[%clk 0:03:02.9]} 5. Bg2 {[%clk
0:03:04.6]} 5... Nb6 {[%clk 0:03:04.1]} 6. Nf3 {[%clk 0:03:02.7]} 6... Bg7
{[%clk 0:03:05.2]} 7. h4 {[%clk 0:03:01.8]} 7... h5 {[%clk 0:03:05.4]} 8. O-O
{[%clk 0:03:00.7]} 8... Nc6 {[%clk 0:03:05.3]} 9. e3 {[%clk 0:02:56.2]} 9... e5
{[%clk 0:03:04.9]} 10. d4 {[%clk 0:02:49.4]} 10... exd4 {[%clk 0:03:04.4]} 11.
exd4 {[%clk 0:02:50.3]} 11... Nxd4 {[%clk 0:03:04.2]} 12. Nxd4 {[%clk
0:02:32.6]} 12... Qxd4 {[%clk 0:03:04.7]} 13. Re1+ {[%clk 0:02:27.4]} 13... Be6
{[%clk 0:03:05.1]} 14. Bxb7 {[%clk 0:02:26]} 14... Qxd1 {[%clk 0:03:05.7]} 15.
Rxd1 {[%clk 0:02:26.1]} 15... Rb8 {[%clk 0:03:06.5]} 16. Bc6+ {[%clk 0:02:25.5]}
16... Ke7 {[%clk 0:03:07.5]} 17. Bg5+ {[%clk 0:02:24.9]} 17... Bf6 {[%clk
0:03:06]} 18. Bf4 {[%clk 0:02:24.7]} 18... Nc4 {[%clk 0:02:55.3]} 19. Nd5+
{[%clk 0:02:14.3]} 19... Bxd5 {[%clk 0:02:56.1]} 20. Rxd5 {[%clk 0:02:16.2]}
20... Nd6 {[%clk 0:02:33]} 21. Re1+ {[%clk 0:02:13.5]} 21... Kf8 {[%clk
0:02:33.9]} 22. b3 {[%clk 0:02:03]} 22... Kg7 {[%clk 0:02:35.1]} 23. Ra5 {[%clk
0:01:54.1]} 23... Bd4 {[%clk 0:02:33.4]} 24. Re7 {[%clk 0:01:51.6]} 24... Bb6
{[%clk 0:02:06.6]} 25. Rae5 {[%clk 0:01:38.1]} 25... Nf5 {[%clk 0:02:01.3]} 26.
Rd7 {[%clk 0:01:23.6]} 26... Rhd8 {[%clk 0:01:39.8]} 27. Red5 {[%clk 0:01:23.3]}
27... Rxd7 {[%clk 0:01:32.6]} 28. Rxd7 {[%clk 0:01:25.2]} 28... Re8 {[%clk
0:01:26.8]} 29. Bxc7 {[%clk 0:01:13.9]} 29... Bxc7 {[%clk 0:01:19.2]} 30. Rxc7
{[%clk 0:01:15.8]} 30... Re1+ {[%clk 0:01:19.8]} 31. Kg2 {[%clk 0:01:16.2]}
31... Rc1 {[%clk 0:01:21.7]} 32. Rxa7 {[%clk 0:01:10]} 32... Rxc6 {[%clk
0:01:22]} 33. b4 {[%clk 0:01:02.9]} 33... Rc2 {[%clk 0:01:20.5]} 34. a4 {[%clk
0:01:00.2]} 34... Ne3+ {[%clk 0:01:07.8]} 35. Kf3 {[%clk 0:00:59.4]} 35... Nd1
{[%clk 0:00:50]} 36. b5 {[%clk 0:00:57.9]} 36... Rxf2+ {[%clk 0:00:50.8]} 37.
Ke4 {[%clk 0:00:57.6]} 37... Rb2 {[%clk 0:00:51.3]} 38. Kd4 {[%clk 0:00:56.2]}
38... Kf6 {[%clk 0:00:47]} 39. Ra6+ {[%clk 0:00:55.9]} 39... Kf5 {[%clk
0:00:46.9]} 40. Ra7 {[%clk 0:00:55.2]} 40... Kg4 {[%clk 0:00:45.9]} 41. Rxf7
{[%clk 0:00:52.9]} 41... Kxg3 {[%clk 0:00:43.2]} 42. Rg7 {[%clk 0:00:44.4]}
42... Kxh4 {[%clk 0:00:39.8]} 43. Rxg6 {[%clk 0:00:44]} 43... Rb4+ {[%clk
0:00:36.9]} 44. Kc5 {[%clk 0:00:44]} 44... Rxa4 {[%clk 0:00:37.3]} 45. b6 {[%clk
0:00:45]} 45... Ra2 {[%clk 0:00:27.5]} 46. b7 {[%clk 0:00:43.6]} 46... Rc2+
{[%clk 0:00:26.6]} 47. Kb6 {[%clk 0:00:42.6]} 47... Rb2+ {[%clk 0:00:23.7]} 48.
Ka7 {[%clk 0:00:43.6]} 48... Nc3 {[%clk 0:00:19.4]} 49. b8=Q {[%clk 0:00:33.6]}
49... Rxb8 {[%clk 0:00:19.2]} 50. Kxb8 {[%clk 0:00:35.5]} 50... Nd5 {[%clk
0:00:18.2]} 51. Kb7 {[%clk 0:00:33.9]} 51... Nf4 {[%clk 0:00:18.4]} 52. Rg8
{[%clk 0:00:33.4]} 52... Kh3 {[%clk 0:00:12.5]} 53. Kc6 {[%clk 0:00:34]} 53...
h4 {[%clk 0:00:12.3]} 54. Kd6 {[%clk 0:00:34.3]} 54... Kh2 {[%clk 0:00:11.9]}
55. Ke5 {[%clk 0:00:35.1]} 55... Ne2 {[%clk 0:00:11.4]} 56. Ke4 {[%clk
0:00:34.4]} 56... h3 {[%clk 0:00:10.4]} 57. Kf3 {[%clk 0:00:34.7]} 57... Nd4+
{[%clk 0:00:11.1]} 58. Kf2 {[%clk 0:00:35.4]} 58... Nf5 {[%clk 0:00:10.2]} 59.
Rg4 {[%clk 0:00:32.7]} 59... Nd6 {[%clk 0:00:08.3]} 60. Rf4 {[%clk 0:00:29.6]}
60... Nb7 {[%clk 0:00:07.3]} 61. Rd4 {[%clk 0:00:24.4]} 61... Nc5 {[%clk
0:00:08.2]} 62. Kf3 {[%clk 0:00:25.1]} 62... Ne6 {[%clk 0:00:09.1]} 63. Rd2+
{[%clk 0:00:23.8]} 63... Kg1 {[%clk 0:00:09.6]} 64. Kg3 {[%clk 0:00:25]} 64...
Kf1 {[%clk 0:00:10.1]} 65. Kxh3 {[%clk 0:00:18]} 65... Nf4+ {[%clk 0:00:09.8]}
66. Kg3 {[%clk 0:00:18.6]} 66... Ne2+ {[%clk 0:00:10]} 67. Kf3 {[%clk
0:00:19.4]} 67... Ng1+ {[%clk 0:00:09.1]} 68. Ke3 {[%clk 0:00:20.8]} 68... Nh3
{[%clk 0:00:10.2]} 69. Rh2 {[%clk 0:00:22.1]} 69... Ng1 {[%clk 0:00:10.4]} 70.
Rf2+ {[%clk 0:00:22.9]} 70... Ke1 {[%clk 0:00:11.7]} 71. Ra2 {[%clk 0:00:24.5]}
71... Kf1 {[%clk 0:00:12.9]} 72. Rf2+ {[%clk 0:00:24]} 72... Ke1 {[%clk
0:00:14]} 73. Rf5 {[%clk 0:00:25.4]} 73... Nh3 {[%clk 0:00:13.6]} 74. Rh5 {[%clk
0:00:22.4]} 74... Ng1 {[%clk 0:00:13.7]} 75. Rh2 {[%clk 0:00:22.3]} 75... Kf1
{[%clk 0:00:14]} 76. Rf2+ {[%clk 0:00:15.8]} 1/2-1/2

[Event "*** Titled Tuesday Blitz"]
[Site "Chess.com"]
[Date "2018.06.05"]
[Round "5"]
[White "Hrant_ChessMood"]
[Black "VitaliyBernadskiy"]
[Result "0-1"]
[WhiteElo "2915"]
[BlackElo "2650"]
[TimeControl "180+2"]
[EndTime "14:16:22 PDT"]
[Termination "VitaliyBernadskiy won by resignation"]

1. d4 {[%clk 0:03:01.9]} 1... Nf6 {[%clk 0:02:58.5]} 2. c4 {[%clk 0:03:02.8]}
2... c5 {[%clk 0:02:58.8]} 3. d5 {[%clk 0:03:01.6]} 3... b5 {[%clk 0:02:59.3]}
4. cxb5 {[%clk 0:03:01.1]} 4... a6 {[%clk 0:02:58.7]} 5. bxa6 {[%clk 0:03:01.4]}
5... e6 {[%clk 0:02:53]} 6. Nc3 {[%clk 0:03:00.7]} 6... exd5 {[%clk 0:02:52.4]}
7. Nxd5 {[%clk 0:02:58.6]} 7... Nxd5 {[%clk 0:02:54.3]} 8. Qxd5 {[%clk
0:02:58.6]} 8... Rxa6 {[%clk 0:02:55.7]} 9. Qe5+ {[%clk 0:02:44.4]} 9... Be7
{[%clk 0:02:46]} 10. Qxb8 {[%clk 0:02:43.9]} 10... O-O {[%clk 0:02:34.9]} 11.
Nf3 {[%clk 0:02:44.8]} 11... d5 {[%clk 0:02:29]} 12. Qf4 {[%clk 0:02:18.2]}
12... c4 {[%clk 0:02:24.1]} 13. g3 {[%clk 0:02:13.6]} 13... Re8 {[%clk
0:02:12.7]} 14. Bg2 {[%clk 0:02:10.1]} 14... Bb4+ {[%clk 0:02:08.2]} 15. Bd2
{[%clk 0:02:05]} 15... Re4 {[%clk 0:02:08.6]} 16. Qg5 {[%clk 0:01:59.2]} 16...
Be7 {[%clk 0:02:08.9]} 17. Qe3 {[%clk 0:00:51.4]} 17... Rxe3 {[%clk 0:02:09.2]}
18. Bxe3 {[%clk 0:00:53.3]} 18... Bf6 {[%clk 0:02:07.3]} 19. Nd4 {[%clk
0:00:26.3]} 19... Qa5+ {[%clk 0:02:04.1]} 20. Kf1 {[%clk 0:00:27.4]} 20... Qb6
{[%clk 0:01:57.6]} 21. Rd1 {[%clk 0:00:18.8]} 21... Qxb2 {[%clk 0:01:56.5]} 22.
Bf3 {[%clk 0:00:11.5]} 22... Bh3+ {[%clk 0:01:54.3]} 23. Bg2 {[%clk 0:00:12.6]}
23... Be6 {[%clk 0:01:47.1]} 24. Bf3 {[%clk 0:00:12.7]} 24... c3 {[%clk
0:01:46.1]} 25. Kg2 {[%clk 0:00:13.5]} 25... c2 {[%clk 0:01:46.9]} 26. Rd3
{[%clk 0:00:04]} 26... Rxa2 {[%clk 0:01:35.4]} 27. Rc1 {[%clk 0:00:02.7]} 27...
Bxd4 {[%clk 0:01:32.8]} 28. Rxd4 {[%clk 0:00:04.6]} 28... Ra1 {[%clk 0:01:32.4]}
29. Rb4 {[%clk 0:00:02.9]} 29... Qxb4 {[%clk 0:01:20.3]} 30. Rxa1 {[%clk
0:00:04.1]} 30... h6 {[%clk 0:01:21]} 31. h4 {[%clk 0:00:04.3]} 31... Qb1 {[%clk
0:01:18]} 32. Ra8+ {[%clk 0:00:02.2]} 32... Kh7 {[%clk 0:01:18.5]} 33. Ra5
{[%clk 0:00:02.2]} 33... c1=Q {[%clk 0:01:18.5]} 34. Bxc1 {[%clk 0:00:03.7]}
34... Qxc1 {[%clk 0:01:20.2]} 35. Bxd5 {[%clk 0:00:05.1]} 35... Bxd5+ {[%clk
0:01:07.7]} 36. Rxd5 {[%clk 0:00:07]} 36... Qc4 {[%clk 0:00:49.2]} 37. Re5
{[%clk 0:00:06.5]} 37... f6 {[%clk 0:00:50]} 38. Re3 {[%clk 0:00:06.7]} 38... g5
{[%clk 0:00:49.2]} 39. hxg5 {[%clk 0:00:07.4]} 39... hxg5 {[%clk 0:00:51.1]} 40.
f3 {[%clk 0:00:05.8]} 40... f5 {[%clk 0:00:47.7]} 41. Re5 {[%clk 0:00:03.3]}
41... Kg6 {[%clk 0:00:46.9]} 42. Re8 {[%clk 0:00:03.7]} 42... Qb5 {[%clk
0:00:39.8]} 43. Re6+ {[%clk 0:00:04]} 43... Kf7 {[%clk 0:00:40.8]} 44. Re3
{[%clk 0:00:04.8]} 44... Kf6 {[%clk 0:00:41.8]} 45. Kf1 {[%clk 0:00:04]} 45...
Qb1+ {[%clk 0:00:41.4]} 46. Kg2 {[%clk 0:00:03.8]} 46... Qb5 {[%clk 0:00:40.5]}
47. Kf1 {[%clk 0:00:04.2]} 47... g4 {[%clk 0:00:34.3]} 48. f4 {[%clk 0:00:02.8]}
48... Qd5 {[%clk 0:00:32.3]} 49. Rd3 {[%clk 0:00:03.6]} 49... Qh1+ {[%clk
0:00:30.3]} 50. Kf2 {[%clk 0:00:04.6]} 50... Ke6 {[%clk 0:00:31.5]} 51. Ke3
{[%clk 0:00:02.6]} 51... Qe1 {[%clk 0:00:21]} 52. Kd4 {[%clk 0:00:02.3]} 52...
Qb4+ {[%clk 0:00:19.9]} 53. Ke3 {[%clk 0:00:03.3]} 53... Qe1 {[%clk 0:00:18.9]}
54. Kd4 {[%clk 0:00:04.4]} 54... Qa1+ {[%clk 0:00:19.3]} 55. Ke3 {[%clk
0:00:05.3]} 55... Qc1+ {[%clk 0:00:18.6]} 56. Kf2 {[%clk 0:00:06.2]} 56... Qh1
{[%clk 0:00:16.6]} 57. Re3+ {[%clk 0:00:05.7]} 57... Kd5 {[%clk 0:00:15.1]} 58.
Rd3+ {[%clk 0:00:05]} 58... Kc4 {[%clk 0:00:15.5]} 59. Re3 {[%clk 0:00:05.1]}
59... Qh2+ {[%clk 0:00:10]} 60. Kf1 {[%clk 0:00:05.9]} 60... Kd4 {[%clk
0:00:10]} 61. Rd3+ {[%clk 0:00:06]} 61... Ke4 {[%clk 0:00:11.2]} 62. Ra3 {[%clk
0:00:07.5]} 62... Qh1+ {[%clk 0:00:09.2]} 63. Kf2 {[%clk 0:00:08.7]} 63... Qd1
{[%clk 0:00:09.7]} 64. Re3+ {[%clk 0:00:09]} 64... Kd4 {[%clk 0:00:10.9]} 65.
Ra3 {[%clk 0:00:08.8]} 65... Qc2 {[%clk 0:00:10.8]} 66. Re3 {[%clk 0:00:08.8]}
66... Qc5 {[%clk 0:00:09.8]} 67. Rd3+ {[%clk 0:00:09.2]} 67... Ke4+ {[%clk
0:00:11]} 68. Kf1 {[%clk 0:00:09.7]} 68... Qc4 {[%clk 0:00:10]} 69. Rd8 {[%clk
0:00:05.4]} 69... Qb5 {[%clk 0:00:09]} 70. Rd1 {[%clk 0:00:02.9]} 70... Ke3
{[%clk 0:00:09.2]} 71. Rd3+ {[%clk 0:00:02.5]} 71... Qxd3 {[%clk 0:00:09.5]} 72.
exd3 {[%clk 0:00:04.4]} 72... Kxd3 {[%clk 0:00:10.9]} 73. Kf2 {[%clk 0:00:06]}
73... Kd2 {[%clk 0:00:11.9]} 74. Kf1 {[%clk 0:00:07]} 74... Ke3 {[%clk
0:00:12.8]} 75. Kg2 {[%clk 0:00:07.9]} 75... Ke2 {[%clk 0:00:14.2]} 76. Kh1
{[%clk 0:00:06.9]} 76... Kf3 {[%clk 0:00:13.3]} 77. Kh2 {[%clk 0:00:07.8]} 77...
Kf2 {[%clk 0:00:14.7]} 0-1